[Event "Titled Tuesday Blitz August 23 Early 2022"]
[White "Ezat, Mohamed"]
[Black "Fier, Alexandr"]
[WhiteFideId "10600906"]
[BlackFideId "2107139"]
[WhiteElo "2386"]
[BlackElo "2598"]
[Result "0-1"]
[Round "06"]
[TimeControl "180+1"]
[Date "2022.08.23"]
[WhiteClock "0:00:08"]
[BlackClock "0:01:07"]

1. d4 {[%clk 0:02:57]}  Nf6 {[%clk 0:03:00]} 2. c4 {[%clk 0:02:55]}  c5 {[%clk 0:03:00]} 3. d5 {[%clk 0:02:54]}  g6 {[%clk 0:03:01]} 4. Nc3 {[%clk 0:02:54]}  Bg7 {[%clk 0:03:01]} 5. e4 {[%clk 0:02:55]}  d6 {[%clk 0:03:02]} 6. Be2 {[%clk 0:02:55]}  O-O {[%clk 0:03:02]} 7. Bg5 {[%clk 0:02:55]}  e6 {[%clk 0:02:59]} 8. Qd2 {[%clk 0:02:54]}  exd5 {[%clk 0:02:59]} 9. exd5 {[%clk 0:02:55]}  Qb6 {[%clk 0:02:56]} 10. Nf3 {[%clk 0:02:54]}  Bf5 {[%clk 0:02:56]} 11. O-O {[%clk 0:02:54]}  Ne4 {[%clk 0:02:56]} 12. Nxe4 {[%clk 0:02:53]}  Bxe4 {[%clk 0:02:56]} 13. b3 {[%clk 0:02:40]}  Nd7 {[%clk 0:02:42]} 14. Rae1 {[%clk 0:02:38]}  Rae8 {[%clk 0:02:42]} 15. Bd1 {[%clk 0:02:31]}  Bxf3 {[%clk 0:02:42]} 16. Bxf3 {[%clk 0:02:30]}  Ne5 {[%clk 0:02:40]} 17. Be2 {[%clk 0:02:29]}  a6 {[%clk 0:02:39]} 18. f4 {[%clk 0:02:24]}  Nd7 {[%clk 0:02:38]} 19. Bd3 {[%clk 0:02:24]}  Nf6 {[%clk 0:02:06]} 20. f5 {[%clk 0:02:01]}  Rxe1 {[%clk 0:01:59]} 21. Qxe1 {[%clk 0:01:46]}  Re8 {[%clk 0:01:37]} 22. Qh4 {[%clk 0:01:43]}  Nd7 {[%clk 0:01:36]} 23. f6 {[%clk 0:01:19]}  Bh8 {[%clk 0:01:26]} 24. Bd2 {[%clk 0:00:44]}  Qd8 {[%clk 0:01:23]} 25. Bg5 {[%clk 0:00:41]}  Qa5 {[%clk 0:01:22]} 26. Bb1 {[%clk 0:00:33]}  Qc3 {[%clk 0:01:21]} 27. h3 {[%clk 0:00:26]}  b5 {[%clk 0:01:19]} 28. cxb5 {[%clk 0:00:25]}  axb5 {[%clk 0:01:19]} 29. a4 {[%clk 0:00:25]}  Qxb3 {[%clk 0:01:15]} 30. axb5 {[%clk 0:00:25]}  Qxb5 {[%clk 0:01:14]} 31. Re1 {[%clk 0:00:19]}  Ne5 {[%clk 0:01:11]} 32. Bf4 {[%clk 0:00:14]}  Qb4 {[%clk 0:01:11]} 33. Qg3 {[%clk 0:00:13]}  Qxe1+ {[%clk 0:01:09]} 34. Qxe1 {[%clk 0:00:07]}  Nf3+ {[%clk 0:01:09]} 35. Kf2 {[%clk 0:00:08]}  Nxe1 {[%clk 0:01:07]} 0-1


[Site "https://www.chess.com"]

[Event "Titled Tuesday Blitz August 23 Early 2022"]
[White "Grandelius, Nils"]
[Black "Vakhlamov, Igor L."]
[WhiteFideId "1710400"]
[BlackFideId "24126748"]
[WhiteElo "2617"]
[BlackElo "2401"]
[Result "0-1"]
[Round "06"]
[TimeControl "180+1"]
[Date "2022.08.23"]
[WhiteClock "0:00:05"]
[BlackClock "0:00:13"]

1. Nf3 {[%clk 0:03:00]}  Nf6 {[%clk 0:02:55]} 2. c4 {[%clk 0:03:00]}  c5 {[%clk 0:02:55]} 3. e3 {[%clk 0:02:58]}  e6 {[%clk 0:02:54]} 4. d4 {[%clk 0:02:55]}  d5 {[%clk 0:02:54]} 5. a3 {[%clk 0:02:56]}  Nc6 {[%clk 0:02:53]} 6. dxc5 {[%clk 0:02:56]}  Bxc5 {[%clk 0:02:52]} 7. b4 {[%clk 0:02:56]}  Bd6 {[%clk 0:02:53]} 8. Bb2 {[%clk 0:02:53]}  O-O {[%clk 0:02:51]} 9. Nbd2 {[%clk 0:02:53]}  Qe7 {[%clk 0:02:46]} 10. Be2 {[%clk 0:02:46]}  Rd8 {[%clk 0:02:39]} 11. Qb3 {[%clk 0:02:46]}  b6 {[%clk 0:02:19]} 12. O-O {[%clk 0:02:43]}  Bb7 {[%clk 0:02:20]} 13. cxd5 {[%clk 0:02:19]}  Nxd5 {[%clk 0:02:16]} 14. Nc4 {[%clk 0:02:20]}  Bc7 {[%clk 0:02:10]} 15. Rfd1 {[%clk 0:02:15]}  Rac8 {[%clk 0:02:10]} 16. b5 {[%clk 0:02:08]}  Na5 {[%clk 0:02:05]} 17. Nxa5 {[%clk 0:02:08]}  bxa5 {[%clk 0:02:06]} 18. Rac1 {[%clk 0:02:00]}  Bb6 {[%clk 0:02:05]} 19. Rxc8 {[%clk 0:01:44]}  Rxc8 {[%clk 0:02:06]} 20. Nd4 {[%clk 0:01:33]}  h6 {[%clk 0:01:49]} 21. Bf3 {[%clk 0:01:31]}  Rc7 {[%clk 0:01:31]} 22. h3 {[%clk 0:01:30]}  Qg5 {[%clk 0:01:12]} 23. Qd3 {[%clk 0:01:14]}  Qe7 {[%clk 0:00:47]} 24. Qe2 {[%clk 0:01:03]}  Qg5 {[%clk 0:00:47]} 25. g3 {[%clk 0:00:55]}  Qe7 {[%clk 0:00:40]} 26. h4 {[%clk 0:00:55]}  a4 {[%clk 0:00:28]} 27. Rd3 {[%clk 0:00:43]}  Qe8 {[%clk 0:00:23]} 28. Qd1 {[%clk 0:00:43]}  Bxd4 {[%clk 0:00:19]} 29. Bxd4 {[%clk 0:00:32]}  Qxb5 {[%clk 0:00:20]} 30. Kh2 {[%clk 0:00:22]}  Ba6 {[%clk 0:00:20]} 31. Rd2 {[%clk 0:00:20]}  f5 {[%clk 0:00:19]} 32. Bxd5 {[%clk 0:00:19]}  exd5 {[%clk 0:00:18]} 33. Qf3 {[%clk 0:00:18]}  Rf7 {[%clk 0:00:18]} 34. Qf4 {[%clk 0:00:17]}  Qf1 {[%clk 0:00:15]} 35. Be5 {[%clk 0:00:16]}  Bd3 {[%clk 0:00:13]} 36. f3 {[%clk 0:00:11]}  Bc4 {[%clk 0:00:13]} 37. Bc3 {[%clk 0:00:08]}  Qc1 {[%clk 0:00:12]} 38. Qd4 {[%clk 0:00:07]}  Qxa3 {[%clk 0:00:13]} 39. Qe5 {[%clk 0:00:06]}  Qe7 {[%clk 0:00:13]} 40. Qd4 {[%clk 0:00:06]}  a3 {[%clk 0:00:13]} 41. Rd1 {[%clk 0:00:06]}  a2 {[%clk 0:00:13]} 42. Ba1 {[%clk 0:00:06]}  Qb7 {[%clk 0:00:13]} 43. Kg2 {[%clk 0:00:06]}  Qb6 {[%clk 0:00:14]} 44. Qc3 {[%clk 0:00:06]}  Re7 {[%clk 0:00:13]} 45. Re1 {[%clk 0:00:05]}  a5 {[%clk 0:00:13]} 46. Kf2 {[%clk 0:00:05]}  Qb4 {[%clk 0:00:14]} 47. Qd4 {[%clk 0:00:04]}  a4 {[%clk 0:00:13]} 48. Rd1 {[%clk 0:00:05]}  Qb3 {[%clk 0:00:12]} 49. h5 {[%clk 0:00:05]}  Qc2+ {[%clk 0:00:12]} 50. Rd2 {[%clk 0:00:05]}  Qb1 {[%clk 0:00:13]} 51. Rb2 {[%clk 0:00:05]}  Qf1# {[%clk 0:00:13]} 0-1


[Site "https://www.chess.com"]

[Event "Titled Tuesday Blitz August 23 Early 2022"]
[White "Hambleton, Aman"]
[Black "Lewtak, Damian"]
[WhiteFideId "2606577"]
[BlackFideId "1141724"]
[WhiteElo "2538"]
[BlackElo "2329"]
[Result "0-1"]
[Round "06"]
[TimeControl "180+1"]
[Date "2022.08.23"]
[WhiteClock "0:00:02"]
[BlackClock "0:00:42"]

1. d4 {[%clk 0:03:00]}  a6 {[%clk 0:03:00]} 2. e4 {[%clk 0:02:36]}  e6 {[%clk 0:03:01]} 3. Bd3 {[%clk 0:02:34]}  d5 {[%clk 0:03:00]} 4. e5 {[%clk 0:02:28]}  c5 {[%clk 0:03:00]} 5. c3 {[%clk 0:02:28]}  Nc6 {[%clk 0:02:59]} 6. Nf3 {[%clk 0:01:52]}  Nge7 {[%clk 0:02:50]} 7. O-O {[%clk 0:01:45]}  Ng6 {[%clk 0:02:48]} 8. Re1 {[%clk 0:01:37]}  Be7 {[%clk 0:02:42]} 9. a3 {[%clk 0:01:20]}  b5 {[%clk 0:02:41]} 10. Be3 {[%clk 0:01:09]}  Rb8 {[%clk 0:02:36]} 11. Bxg6 {[%clk 0:01:02]}  hxg6 {[%clk 0:02:32]} 12. dxc5 {[%clk 0:01:03]}  Na5 {[%clk 0:02:23]} 13. b4 {[%clk 0:01:03]}  Nc4 {[%clk 0:02:23]} 14. Nbd2 {[%clk 0:01:03]}  Qc7 {[%clk 0:02:20]} 15. Bd4 {[%clk 0:00:39]}  Bb7 {[%clk 0:02:14]} 16. Nf1 {[%clk 0:00:31]}  Bc6 {[%clk 0:02:10]} 17. h3 {[%clk 0:00:29]}  Kd7 {[%clk 0:02:07]} 18. Qe2 {[%clk 0:00:23]}  Rh7 {[%clk 0:02:06]} 19. N1h2 {[%clk 0:00:20]}  Rbh8 {[%clk 0:02:00]} 20. Ng4 {[%clk 0:00:20]}  Qd8 {[%clk 0:02:01]} 21. Qc2 {[%clk 0:00:17]}  Bg5 {[%clk 0:01:56]} 22. a4 {[%clk 0:00:07]}  bxa4 {[%clk 0:01:55]} 23. Rxa4 {[%clk 0:00:03]}  Bb5 {[%clk 0:01:56]} 24. Nxg5 {[%clk 0:00:03]}  Qxg5 {[%clk 0:01:55]} 25. f3 {[%clk 0:00:03]}  Qf4 {[%clk 0:01:25]} 26. Rxa6 {[%clk 0:00:03]}  Bxa6 {[%clk 0:01:10]} 27. Qa4+ {[%clk 0:00:03]}  Kd8 {[%clk 0:01:11]} 28. Qxa6 {[%clk 0:00:03]}  Rxh3 {[%clk 0:01:11]} 29. Qa8+ {[%clk 0:00:02]}  Ke7 {[%clk 0:01:09]} 30. Qb7+ {[%clk 0:00:02]}  Ke8 {[%clk 0:01:10]} 31. Qc8+ {[%clk 0:00:02]}  Ke7 {[%clk 0:01:09]} 32. Qc7+ {[%clk 0:00:02]}  Ke8 {[%clk 0:01:10]} 33. c6 {[%clk 0:00:02]}  Qg5 {[%clk 0:00:53]} 34. Qd7+ {[%clk 0:00:02]}  Kf8 {[%clk 0:00:53]} 35. c7 {[%clk 0:00:02]}  Rh1+ {[%clk 0:00:50]} 36. Kf2 {[%clk 0:00:02]}  Qh4+ {[%clk 0:00:49]} 37. g3 {[%clk 0:00:01]}  Rh2+ {[%clk 0:00:42]} 38. Nxh2 {[%clk 0:00:01]}  Qxh2+ {[%clk 0:00:42]} 39. Kf1 {[%clk 0:00:02]}  Nd2# {[%clk 0:00:42]} 0-1


[Site "https://www.chess.com"]

[Event "Titled Tuesday Blitz August 23 Early 2022"]
[White "Kamsky, Gata"]
[Black "Mitrabha, Guha"]
[WhiteFideId "2000024"]
[BlackFideId "5057000"]
[WhiteElo "2666"]
[BlackElo "2499"]
[Result "0-1"]
[Round "06"]
[TimeControl "180+1"]
[Date "2022.08.23"]
[WhiteClock "0:00:01"]
[BlackClock "0:00:14"]

1. d4 {[%clk 0:03:00]}  Nf6 {[%clk 0:03:00]} 2. Bf4 {[%clk 0:02:55]}  b6 {[%clk 0:02:59]} 3. e3 {[%clk 0:02:54]}  Bb7 {[%clk 0:03:00]} 4. Nf3 {[%clk 0:02:51]}  g6 {[%clk 0:03:00]} 5. h3 {[%clk 0:02:50]}  Bg7 {[%clk 0:03:00]} 6. a4 {[%clk 0:02:43]}  a6 {[%clk 0:03:00]} 7. Nbd2 {[%clk 0:02:41]}  O-O {[%clk 0:02:59]} 8. c3 {[%clk 0:02:39]}  d6 {[%clk 0:02:59]} 9. Bc4 {[%clk 0:02:38]}  Nbd7 {[%clk 0:02:59]} 10. O-O {[%clk 0:02:38]}  c5 {[%clk 0:02:59]} 11. Bh2 {[%clk 0:02:25]}  Qc7 {[%clk 0:02:57]} 12. Re1 {[%clk 0:02:21]}  Ne4 {[%clk 0:02:55]} 13. Nxe4 {[%clk 0:02:05]}  Bxe4 {[%clk 0:02:56]} 14. Nd2 {[%clk 0:01:46]}  Bb7 {[%clk 0:02:55]} 15. Qe2 {[%clk 0:01:32]}  Rfc8 {[%clk 0:02:49]} 16. Bd3 {[%clk 0:01:30]}  Re8 {[%clk 0:02:37]} 17. b4 {[%clk 0:01:06]}  Nf6 {[%clk 0:02:29]} 18. a5 {[%clk 0:00:46]}  cxb4 {[%clk 0:02:17]} 19. axb6 {[%clk 0:00:44]}  Qxb6 {[%clk 0:02:18]} 20. Nc4 {[%clk 0:00:43]}  Qc6 {[%clk 0:02:14]} 21. e4 {[%clk 0:00:23]}  bxc3 {[%clk 0:02:10]} 22. Na5 {[%clk 0:00:23]}  Qd7 {[%clk 0:02:08]} 23. Rec1 {[%clk 0:00:21]}  Rec8 {[%clk 0:01:54]} 24. Ra3 {[%clk 0:00:20]}  Rc7 {[%clk 0:01:38]} 25. Raxc3 {[%clk 0:00:20]}  Rxc3 {[%clk 0:01:38]} 26. Rxc3 {[%clk 0:00:20]}  Rc8 {[%clk 0:01:30]} 27. Rxc8+ {[%clk 0:00:19]}  Qxc8 {[%clk 0:01:30]} 28. Bf4 {[%clk 0:00:19]}  Qa8 {[%clk 0:01:23]} 29. d5 {[%clk 0:00:17]}  Nd7 {[%clk 0:01:21]} 30. Be3 {[%clk 0:00:15]}  Ne5 {[%clk 0:01:19]} 31. g3 {[%clk 0:00:10]}  Bc8 {[%clk 0:01:15]} 32. Kg2 {[%clk 0:00:10]}  Qb8 {[%clk 0:01:02]} 33. Bd4 {[%clk 0:00:08]}  Qb4 {[%clk 0:00:56]} 34. Bxe5 {[%clk 0:00:08]}  Qxa5 {[%clk 0:00:56]} 35. Bxg7 {[%clk 0:00:08]}  Kxg7 {[%clk 0:00:57]} 36. Qb2+ {[%clk 0:00:08]}  f6 {[%clk 0:00:55]} 37. Qb8 {[%clk 0:00:08]}  Qc5 {[%clk 0:00:53]} 38. Qa8 {[%clk 0:00:07]}  a5 {[%clk 0:00:48]} 39. Be2 {[%clk 0:00:06]}  Qc7 {[%clk 0:00:31]} 40. Bb5 {[%clk 0:00:05]}  f5 {[%clk 0:00:30]} 41. exf5 {[%clk 0:00:04]}  Bxf5 {[%clk 0:00:31]} 42. Bc6 {[%clk 0:00:04]}  Be4+ {[%clk 0:00:29]} 43. f3 {[%clk 0:00:03]}  Bf5 {[%clk 0:00:29]} 44. g4 {[%clk 0:00:03]}  Bc8 {[%clk 0:00:26]} 45. h4 {[%clk 0:00:01]}  h6 {[%clk 0:00:25]} 46. Kg3 {[%clk 0:00:01]}  e5 {[%clk 0:00:23]} 47. dxe6 {[%clk 0:00:01]}  Bxe6 {[%clk 0:00:22]} 48. Bd5 {[%clk 0:00:01]}  Bc8 {[%clk 0:00:14]} 0-1


[Site "https://www.chess.com"]

[Event "Titled Tuesday Blitz August 23 Early 2022"]
[White "Korchmar, Vasiliy"]
[Black "Zou, Chen"]
[WhiteFideId "24131750"]
[BlackFideId "8610959"]
[WhiteElo "2370"]
[BlackElo "2276"]
[Result "1-0"]
[Round "06"]
[TimeControl "180+1"]
[Date "2022.08.23"]
[WhiteClock "0:00:10"]
[BlackClock "0:00:17"]

1. e4 {[%clk 0:03:00]}  c5 {[%clk 0:02:58]} 2. Nf3 {[%clk 0:03:01]}  d6 {[%clk 0:02:58]} 3. d4 {[%clk 0:03:01]}  cxd4 {[%clk 0:02:59]} 4. Nxd4 {[%clk 0:03:01]}  Nf6 {[%clk 0:02:59]} 5. Nc3 {[%clk 0:03:02]}  Nc6 {[%clk 0:01:58]} 6. Bb5 {[%clk 0:03:00]}  Bd7 {[%clk 0:01:58]} 7. Bg5 {[%clk 0:03:00]}  e6 {[%clk 0:01:57]} 8. Qd3 {[%clk 0:02:59]}  Be7 {[%clk 0:01:57]} 9. O-O-O {[%clk 0:02:58]}  O-O {[%clk 0:01:56]} 10. Bxc6 {[%clk 0:02:53]}  bxc6 {[%clk 0:01:56]} 11. Nb3 {[%clk 0:02:53]}  d5 {[%clk 0:01:52]} 12. e5 {[%clk 0:02:47]}  Ne8 {[%clk 0:01:51]} 13. Bxe7 {[%clk 0:02:47]}  Qxe7 {[%clk 0:01:52]} 14. Qd4 {[%clk 0:02:34]}  Nc7 {[%clk 0:01:41]} 15. Nc5 {[%clk 0:02:30]}  Bc8 {[%clk 0:01:41]} 16. Rhe1 {[%clk 0:02:24]}  Rb8 {[%clk 0:01:41]} 17. N3a4 {[%clk 0:02:06]}  a5 {[%clk 0:01:40]} 18. a3 {[%clk 0:02:05]}  Nb5 {[%clk 0:01:39]} 19. Qg4 {[%clk 0:02:02]}  Rd8 {[%clk 0:01:31]} 20. Rd3 {[%clk 0:02:01]}  d4 {[%clk 0:01:26]} 21. Rg3 {[%clk 0:01:57]}  g6 {[%clk 0:01:25]} 22. h4 {[%clk 0:01:56]}  Rd5 {[%clk 0:01:23]} 23. Nd3 {[%clk 0:01:26]}  Nxa3 {[%clk 0:01:10]} 24. h5 {[%clk 0:01:23]}  Nc4 {[%clk 0:01:07]} 25. hxg6 {[%clk 0:01:12]}  fxg6 {[%clk 0:01:06]} 26. Rh1 {[%clk 0:00:58]}  Nxe5 {[%clk 0:00:56]} 27. Nxe5 {[%clk 0:00:58]}  Rxe5 {[%clk 0:00:57]} 28. Qxd4 {[%clk 0:00:58]}  Qf6 {[%clk 0:00:34]} 29. Qd6 {[%clk 0:00:54]}  Rb7 {[%clk 0:00:15]} 30. Nc5 {[%clk 0:00:26]}  Rf7 {[%clk 0:00:14]} 31. Rf3 {[%clk 0:00:20]}  Qg5+ {[%clk 0:00:13]} 32. Kb1 {[%clk 0:00:20]}  Rxf3 {[%clk 0:00:12]} 33. gxf3 {[%clk 0:00:20]}  Rxc5 {[%clk 0:00:11]} 34. Qc7 {[%clk 0:00:20]}  h5 {[%clk 0:00:09]} 35. Qxc8+ {[%clk 0:00:20]}  Kg7 {[%clk 0:00:10]} 36. Qxe6 {[%clk 0:00:19]}  Re5 {[%clk 0:00:08]} 37. Qxc6 {[%clk 0:00:18]}  Qe7 {[%clk 0:00:07]} 38. Rg1 {[%clk 0:00:15]}  Re1+ {[%clk 0:00:07]} 39. Rxe1 {[%clk 0:00:15]}  Qxe1+ {[%clk 0:00:08]} 40. Ka2 {[%clk 0:00:16]}  Qe7 {[%clk 0:00:06]} 41. c4 {[%clk 0:00:13]}  h4 {[%clk 0:00:06]} 42. f4 {[%clk 0:00:08]}  h3 {[%clk 0:00:06]} 43. f5 {[%clk 0:00:07]}  gxf5 {[%clk 0:00:05]} 44. c5 {[%clk 0:00:04]}  Qf7+ {[%clk 0:00:03]} 45. Ka3 {[%clk 0:00:03]}  Qh5 {[%clk 0:00:03]} 46. Qc7+ {[%clk 0:00:03]}  Kf6 {[%clk 0:00:04]} 47. Qd6+ {[%clk 0:00:03]}  Kg5 {[%clk 0:00:04]} 48. Qg3+ {[%clk 0:00:03]}  Kf6 {[%clk 0:00:04]} 49. Qd6+ {[%clk 0:00:03]}  Kf7 {[%clk 0:00:05]} 50. Qd7+ {[%clk 0:00:03]}  Kf8 {[%clk 0:00:05]} 51. Qd8+ {[%clk 0:00:03]}  Kg7 {[%clk 0:00:05]} 52. Qc7+ {[%clk 0:00:03]}  Kh6 {[%clk 0:00:05]} 53. Qd6+ {[%clk 0:00:02]}  Qg6 {[%clk 0:00:05]} 54. Qh2 {[%clk 0:00:02]}  Qg4 {[%clk 0:00:05]} 55. c6 {[%clk 0:00:02]}  Qb4+ {[%clk 0:00:05]} 56. Ka2 {[%clk 0:00:02]}  Qa4+ {[%clk 0:00:05]} 57. Kb1 {[%clk 0:00:02]}  Qd1+ {[%clk 0:00:06]} 58. Ka2 {[%clk 0:00:03]}  Qd5+ {[%clk 0:00:03]} 59. Ka1 {[%clk 0:00:02]}  Qg2 {[%clk 0:00:03]} 60. Qd6+ {[%clk 0:00:02]}  Kh5 {[%clk 0:00:03]} 61. c7 {[%clk 0:00:02]}  Qf1+ {[%clk 0:00:03]} 62. Ka2 {[%clk 0:00:02]}  Qc4+ {[%clk 0:00:04]} 63. Ka1 {[%clk 0:00:02]}  Qf1+ {[%clk 0:00:04]} 64. Ka2 {[%clk 0:00:02]}  Qc4+ {[%clk 0:00:05]} 65. b3 {[%clk 0:00:03]}  Qc2+ {[%clk 0:00:05]} 66. Ka3 {[%clk 0:00:03]}  Qc1+ {[%clk 0:00:05]} 67. Ka4 {[%clk 0:00:04]}  h2 {[%clk 0:00:05]} 68. Qxh2+ {[%clk 0:00:03]}  Kg4 {[%clk 0:00:05]} 69. Qg3+ {[%clk 0:00:03]}  Kh5 {[%clk 0:00:06]} 70. Qh3+ {[%clk 0:00:03]}  Kg5 {[%clk 0:00:06]} 71. Qg2+ {[%clk 0:00:03]}  Kf6 {[%clk 0:00:07]} 72. Qb7 {[%clk 0:00:03]}  Qa1+ {[%clk 0:00:07]} 73. Kb5 {[%clk 0:00:03]}  Qe5+ {[%clk 0:00:08]} 74. Kb6 {[%clk 0:00:03]}  Qd4+ {[%clk 0:00:08]} 75. Ka6 {[%clk 0:00:04]}  Qd3+ {[%clk 0:00:08]} 76. Ka7 {[%clk 0:00:04]}  Qd4+ {[%clk 0:00:08]} 77. Qb6+ {[%clk 0:00:04]}  Ke5 {[%clk 0:00:08]} 78. Qxd4+ {[%clk 0:00:04]}  Kxd4 {[%clk 0:00:09]} 79. c8=Q {[%clk 0:00:05]}  Kd3 {[%clk 0:00:09]} 80. Qc4+ {[%clk 0:00:05]}  Kd2 {[%clk 0:00:09]} 81. Kb6 {[%clk 0:00:06]}  Ke1 {[%clk 0:00:10]} 82. f4 {[%clk 0:00:05]}  Kf2 {[%clk 0:00:11]} 83. Kxa5 {[%clk 0:00:05]}  Kg1 {[%clk 0:00:12]} 84. b4 {[%clk 0:00:06]}  Kg2 {[%clk 0:00:13]} 85. b5 {[%clk 0:00:07]}  Kh1 {[%clk 0:00:14]} 86. b6 {[%clk 0:00:07]}  Kg2 {[%clk 0:00:15]} 87. b7 {[%clk 0:00:08]}  Kh1 {[%clk 0:00:16]} 88. b8=Q {[%clk 0:00:09]}  Kh2 {[%clk 0:00:16]} 89. Qc3 {[%clk 0:00:09]}  Kg1 {[%clk 0:00:16]} 90. Qbb2 {[%clk 0:00:09]}  Kh1 {[%clk 0:00:17]} 91. Qcc1# {[%clk 0:00:10]} 1-0


[Site "https://www.chess.com"]

[Event "Titled Tuesday Blitz August 23 Early 2022"]
[White "Ladopoulos, Dimitrios"]
[Black "Alekseenko, Kirill"]
[WhiteFideId "4239580"]
[BlackFideId "4135539"]
[WhiteElo "2195"]
[BlackElo "2682"]
[Result "1-0"]
[Round "06"]
[TimeControl "180+1"]
[Date "2022.08.23"]
[WhiteClock "0:00:41"]
[BlackClock "0:00:25"]

1. d4 {[%clk 0:03:00]}  d5 {[%clk 0:02:59]} 2. c4 {[%clk 0:02:58]}  dxc4 {[%clk 0:03:00]} 3. e4 {[%clk 0:02:53]}  Nf6 {[%clk 0:03:00]} 4. Nc3 {[%clk 0:02:51]}  e5 {[%clk 0:02:59]} 5. d5 {[%clk 0:02:43]}  c6 {[%clk 0:02:59]} 6. Bxc4 {[%clk 0:02:42]}  b5 {[%clk 0:03:00]} 7. Bb3 {[%clk 0:02:39]}  b4 {[%clk 0:02:57]} 8. Na4 {[%clk 0:02:36]}  cxd5 {[%clk 0:02:53]} 9. Nf3 {[%clk 0:02:26]}  Bb7 {[%clk 0:02:47]} 10. O-O {[%clk 0:02:21]}  Bd6 {[%clk 0:02:47]} 11. exd5 {[%clk 0:02:19]}  O-O {[%clk 0:02:43]} 12. Nd2 {[%clk 0:02:19]}  Nbd7 {[%clk 0:02:22]} 13. Nc4 {[%clk 0:02:16]}  Qe7 {[%clk 0:02:22]} 14. Na5 {[%clk 0:02:04]}  Ba6 {[%clk 0:02:12]} 15. Re1 {[%clk 0:01:54]}  Bc7 {[%clk 0:01:44]} 16. Nc6 {[%clk 0:01:45]}  Qd6 {[%clk 0:01:44]} 17. Be3 {[%clk 0:01:33]}  Rfe8 {[%clk 0:01:38]} 18. Rc1 {[%clk 0:01:30]}  h5 {[%clk 0:01:17]} 19. Nxa7 {[%clk 0:01:13]}  Bb7 {[%clk 0:00:47]} 20. Nb5 {[%clk 0:01:11]}  Qe7 {[%clk 0:00:36]} 21. Nxc7 {[%clk 0:01:08]}  Ng4 {[%clk 0:00:33]} 22. Nxa8 {[%clk 0:00:59]}  Rxa8 {[%clk 0:00:32]} 23. h3 {[%clk 0:00:57]}  Nxe3 {[%clk 0:00:32]} 24. Rxe3 {[%clk 0:00:58]}  Qd6 {[%clk 0:00:33]} 25. Qxh5 {[%clk 0:00:48]}  Ra5 {[%clk 0:00:25]} 26. Rc6 {[%clk 0:00:41]} 1-0


[Site "https://www.chess.com"]

[Event "Titled Tuesday Blitz August 23 Early 2022"]
[White "Le, Tuan Minh"]
[Black "Nakamura, Hikaru"]
[WhiteFideId "12401153"]
[BlackFideId "2016192"]
[WhiteElo "2530"]
[BlackElo "2850"]
[Result "1-0"]
[Round "06"]
[TimeControl "180+1"]
[Date "2022.08.23"]
[WhiteClock "0:00:20"]
[BlackClock "0:00:02"]

1. d4 {[%clk 0:03:00]}  Nf6 {[%clk 0:02:59]} 2. Nf3 {[%clk 0:03:01]}  d5 {[%clk 0:02:59]} 3. Bf4 {[%clk 0:03:02]}  Bf5 {[%clk 0:02:59]} 4. e3 {[%clk 0:03:02]}  e6 {[%clk 0:03:00]} 5. c4 {[%clk 0:03:03]}  c6 {[%clk 0:02:58]} 6. Nc3 {[%clk 0:03:03]}  Bd6 {[%clk 0:02:57]} 7. Bg3 {[%clk 0:03:02]}  Bxg3 {[%clk 0:02:57]} 8. hxg3 {[%clk 0:03:03]}  Nbd7 {[%clk 0:02:57]} 9. Bd3 {[%clk 0:03:03]}  Bxd3 {[%clk 0:02:57]} 10. Qxd3 {[%clk 0:03:04]}  dxc4 {[%clk 0:02:57]} 11. Qxc4 {[%clk 0:03:05]}  Rc8 {[%clk 0:02:58]} 12. O-O {[%clk 0:03:04]}  O-O {[%clk 0:02:58]} 13. Rfd1 {[%clk 0:03:05]}  b5 {[%clk 0:02:57]} 14. Qd3 {[%clk 0:03:03]}  Qe7 {[%clk 0:02:57]} 15. Rac1 {[%clk 0:02:56]}  Rfd8 {[%clk 0:02:34]} 16. Ne4 {[%clk 0:02:55]}  a6 {[%clk 0:02:18]} 17. Nxf6+ {[%clk 0:02:38]}  gxf6 {[%clk 0:02:06]} 18. Qe4 {[%clk 0:02:12]}  c5 {[%clk 0:02:03]} 19. Qg4+ {[%clk 0:01:55]}  Kh8 {[%clk 0:02:00]} 20. dxc5 {[%clk 0:01:55]}  Nxc5 {[%clk 0:01:25]} 21. Qh4 {[%clk 0:01:50]}  Rxd1+ {[%clk 0:01:11]} 22. Rxd1 {[%clk 0:01:51]}  Nd7 {[%clk 0:01:11]} 23. Qd4 {[%clk 0:01:22]}  Nf8 {[%clk 0:01:06]} 24. g4 {[%clk 0:01:15]}  Kg8 {[%clk 0:01:05]} 25. Qb6 {[%clk 0:01:09]}  Qe8 {[%clk 0:00:56]} 26. g5 {[%clk 0:01:03]}  fxg5 {[%clk 0:00:48]} 27. Nxg5 {[%clk 0:01:04]}  Qc6 {[%clk 0:00:44]} 28. Qd4 {[%clk 0:01:03]}  Ng6 {[%clk 0:00:34]} 29. Qf6 {[%clk 0:00:53]}  Qe8 {[%clk 0:00:32]} 30. b4 {[%clk 0:00:44]}  h6 {[%clk 0:00:22]} 31. Ne4 {[%clk 0:00:44]}  Qe7 {[%clk 0:00:23]} 32. Qd4 {[%clk 0:00:40]}  e5 {[%clk 0:00:22]} 33. Qd6 {[%clk 0:00:40]}  Qxd6 {[%clk 0:00:20]} 34. Rxd6 {[%clk 0:00:41]}  Rc4 {[%clk 0:00:18]} 35. Nf6+ {[%clk 0:00:41]}  Kg7 {[%clk 0:00:17]} 36. Nh5+ {[%clk 0:00:42]}  Kf8 {[%clk 0:00:17]} 37. a3 {[%clk 0:00:42]}  Rc1+ {[%clk 0:00:15]} 38. Kh2 {[%clk 0:00:42]}  Rc2 {[%clk 0:00:16]} 39. Kg3 {[%clk 0:00:35]}  e4 {[%clk 0:00:16]} 40. Rxa6 {[%clk 0:00:30]}  Ne5 {[%clk 0:00:15]} 41. Nf6 {[%clk 0:00:26]}  Rc4 {[%clk 0:00:09]} 42. Rb6 {[%clk 0:00:24]}  Kg7 {[%clk 0:00:10]} 43. Nh5+ {[%clk 0:00:24]}  Kh7 {[%clk 0:00:10]} 44. Rxb5 {[%clk 0:00:24]}  Nd3 {[%clk 0:00:11]} 45. Rb7 {[%clk 0:00:23]}  Kg8 {[%clk 0:00:08]} 46. b5 {[%clk 0:00:21]}  Rc2 {[%clk 0:00:04]} 47. Nf6+ {[%clk 0:00:21]}  Kg7 {[%clk 0:00:04]} 48. Nxe4 {[%clk 0:00:21]}  h5 {[%clk 0:00:03]} 49. b6 {[%clk 0:00:20]}  Rb2 {[%clk 0:00:04]} 50. a4 {[%clk 0:00:20]}  h4+ {[%clk 0:00:04]} 51. Kxh4 {[%clk 0:00:20]}  Rb4 {[%clk 0:00:04]} 52. f3 {[%clk 0:00:20]}  Rxa4 {[%clk 0:00:04]} 53. Kg3 {[%clk 0:00:20]}  Rb4 {[%clk 0:00:04]} 54. Nd6 {[%clk 0:00:20]}  Ne5 {[%clk 0:00:04]} 55. f4 {[%clk 0:00:18]}  Nc6 {[%clk 0:00:01]} 56. Rxf7+ {[%clk 0:00:19]}  Kg6 {[%clk 0:00:01]} 57. b7 {[%clk 0:00:19]}  Nd8 {[%clk 0:00:02]} 58. Rd7 {[%clk 0:00:20]}  Ne6 {[%clk 0:00:02]} 59. f5+ {[%clk 0:00:20]} 1-0


[Site "https://www.chess.com"]